[Event "Titled Tuesday Blitz May 24 Early 2022"]
[White "Chojnacki, Slawomir"]
[Black "Nugumanov, Bakhtiyar"]
[WhiteFideId "1117076"]
[BlackFideId "13701797"]
[WhiteElo "2084"]
[BlackElo "2262"]
[Result "1-0"]
[Round "02"]
[TimeControl "180+1"]
[Date "2022.05.25"]
[WhiteClock "0:00:29"]
[BlackClock "0:00:03"]

1. d4 {[%clk 0:02:55]}  d5 {[%clk 0:02:06]} 2. Nf3 {[%clk 0:02:56]}  Nf6 {[%clk 0:02:05]} 3. c3 {[%clk 0:02:57]}  c5 {[%clk 0:01:54]} 4. Bf4 {[%clk 0:02:44]}  Nc6 {[%clk 0:01:54]} 5. e3 {[%clk 0:02:42]}  Qb6 {[%clk 0:01:45]} 6. Qb3 {[%clk 0:02:41]}  c4 {[%clk 0:01:40]} 7. Qc2 {[%clk 0:02:41]}  Bf5 {[%clk 0:01:40]} 8. Qc1 {[%clk 0:02:42]}  g6 {[%clk 0:01:36]} 9. Be2 {[%clk 0:02:42]}  Bg7 {[%clk 0:01:35]} 10. Nbd2 {[%clk 0:02:42]}  O-O {[%clk 0:01:34]} 11. h3 {[%clk 0:02:43]}  Nd7 {[%clk 0:01:16]} 12. O-O {[%clk 0:02:42]}  e5 {[%clk 0:01:14]} 13. dxe5 {[%clk 0:02:42]}  Ndxe5 {[%clk 0:01:14]} 14. Nxe5 {[%clk 0:02:43]}  Nxe5 {[%clk 0:01:15]} 15. Nf3 {[%clk 0:02:39]}  Nd3 {[%clk 0:01:05]} 16. Bxd3 {[%clk 0:02:39]}  Bxd3 {[%clk 0:01:06]} 17. Rd1 {[%clk 0:02:40]}  Rfd8 {[%clk 0:01:02]} 18. Be5 {[%clk 0:02:36]}  Be2 {[%clk 0:00:56]} 19. Bxg7 {[%clk 0:02:35]}  Kxg7 {[%clk 0:00:53]} 20. Rd4 {[%clk 0:02:31]}  Bxf3 {[%clk 0:00:53]} 21. gxf3 {[%clk 0:02:32]}  Qe6 {[%clk 0:00:51]} 22. Kg2 {[%clk 0:02:31]}  b5 {[%clk 0:00:42]} 23. Qd2 {[%clk 0:02:31]}  Rd6 {[%clk 0:00:37]} 24. Rd1 {[%clk 0:02:30]}  Rad8 {[%clk 0:00:37]} 25. e4 {[%clk 0:02:25]}  Ra6 {[%clk 0:00:26]} 26. a3 {[%clk 0:02:23]}  dxe4 {[%clk 0:00:18]} 27. Rxd8 {[%clk 0:02:18]}  exf3+ {[%clk 0:00:18]} 28. Kg3 {[%clk 0:01:56]}  Qe5+ {[%clk 0:00:18]} 29. Qf4 {[%clk 0:01:55]}  Qe2 {[%clk 0:00:19]} 30. R1d2 {[%clk 0:01:44]}  Qe1 {[%clk 0:00:17]} 31. Qxf3 {[%clk 0:01:40]}  Rf6 {[%clk 0:00:18]} 32. Qxf6+ {[%clk 0:01:21]}  Kxf6 {[%clk 0:00:18]} 33. R8d6+ {[%clk 0:01:22]}  Kg7 {[%clk 0:00:17]} 34. Kg2 {[%clk 0:01:21]}  Qe4+ {[%clk 0:00:17]} 35. Kh2 {[%clk 0:01:16]}  Qf4+ {[%clk 0:00:16]} 36. Kh1 {[%clk 0:01:15]}  Qf3+ {[%clk 0:00:15]} 37. Kg1 {[%clk 0:01:15]}  Qxh3 {[%clk 0:00:14]} 38. R6d4 {[%clk 0:01:15]}  Qh5 {[%clk 0:00:11]} 39. Kf1 {[%clk 0:01:12]}  Qh1+ {[%clk 0:00:10]} 40. Ke2 {[%clk 0:01:12]}  Qh5+ {[%clk 0:00:10]} 41. Ke3 {[%clk 0:01:06]}  Qe5+ {[%clk 0:00:11]} 42. Re4 {[%clk 0:01:04]}  Qg5+ {[%clk 0:00:11]} 43. f4 {[%clk 0:01:00]}  Qg3+ {[%clk 0:00:12]} 44. Kd4 {[%clk 0:01:00]}  h5 {[%clk 0:00:11]} 45. Kc5 {[%clk 0:00:55]}  a6 {[%clk 0:00:12]} 46. Re7 {[%clk 0:00:40]}  h4 {[%clk 0:00:11]} 47. Rdd7 {[%clk 0:00:39]}  Qf2+ {[%clk 0:00:10]} 48. Kc6 {[%clk 0:00:36]}  Qxf4 {[%clk 0:00:09]} 49. Rd4 {[%clk 0:00:33]}  Qf3+ {[%clk 0:00:10]} 50. Kd7 {[%clk 0:00:32]}  h3 {[%clk 0:00:08]} 51. Ke8 {[%clk 0:00:29]}  h2 {[%clk 0:00:07]} 52. Rdd7 {[%clk 0:00:30]}  h1=Q {[%clk 0:00:06]} 53. Rxf7+ {[%clk 0:00:30]}  Qxf7+ {[%clk 0:00:06]} 54. Rxf7+ {[%clk 0:00:31]}  Kh6 {[%clk 0:00:03]} 55. Rf6 {[%clk 0:00:31]}  Qb7 {[%clk 0:00:03]} 56. Rd6 {[%clk 0:00:29]} 1-0


[Site "https://www.chess.com"]

[Event "Titled Tuesday Blitz May 24 Early 2022"]
[White "Ciuffoletti, Paolo"]
[Black "Shuvalov, Evgenij"]
[WhiteFideId "807630"]
[BlackFideId "4187237"]
[WhiteElo "2143"]
[BlackElo "2053"]
[Result "0-1"]
[Round "02"]
[TimeControl "180+1"]
[Date "2022.05.25"]
[WhiteClock "0:00:45"]
[BlackClock "0:02:28"]

1. e4 {[%clk 0:03:00]}  e6 {[%clk 0:02:57]} 2. d4 {[%clk 0:03:00]}  d5 {[%clk 0:02:58]} 3. e5 {[%clk 0:03:00]}  c5 {[%clk 0:02:58]} 4. c3 {[%clk 0:03:00]}  Nc6 {[%clk 0:02:58]} 5. Nf3 {[%clk 0:03:00]}  Qb6 {[%clk 0:02:59]} 6. a3 {[%clk 0:03:00]}  Bd7 {[%clk 0:02:58]} 7. Be2 {[%clk 0:02:59]}  Nh6 {[%clk 0:02:49]} 8. b4 {[%clk 0:02:35]}  cxd4 {[%clk 0:02:46]} 9. cxd4 {[%clk 0:02:34]}  Nf5 {[%clk 0:02:46]} 10. Be3 {[%clk 0:02:24]}  Nxe3 {[%clk 0:02:41]} 11. fxe3 {[%clk 0:02:24]}  Rc8 {[%clk 0:02:42]} 12. O-O {[%clk 0:02:20]}  Be7 {[%clk 0:02:41]} 13. Nbd2 {[%clk 0:02:12]}  Nb8 {[%clk 0:02:37]} 14. Qb3 {[%clk 0:01:53]}  Bb5 {[%clk 0:02:32]} 15. Rfc1 {[%clk 0:01:09]}  O-O {[%clk 0:02:31]} 16. Bxb5 {[%clk 0:00:44]}  Qxb5 {[%clk 0:02:30]} 17. Rxc8 {[%clk 0:00:44]}  Rxc8 {[%clk 0:02:29]} 18. Rc1 {[%clk 0:00:45]}  Rxc1+ {[%clk 0:02:28]} 0-1


[Site "https://www.chess.com"]

[Event "Titled Tuesday Blitz May 24 Early 2022"]
[White "Clawitter, Craig"]
[Black "Navalgund, Niranjan"]
[WhiteFideId "2023105"]
[BlackFideId "5030854"]
[WhiteElo "2233"]
[BlackElo "2290"]
[Result "0-1"]
[Round "02"]
[TimeControl "180+1"]
[Date "2022.05.25"]
[WhiteClock "0:00:22"]
[BlackClock "0:01:31"]

1. e4 {[%clk 0:03:00]}  e5 {[%clk 0:02:58]} 2. Nf3 {[%clk 0:02:59]}  Nc6 {[%clk 0:02:46]} 3. Bb5 {[%clk 0:02:59]}  g6 {[%clk 0:02:45]} 4. Nc3 {[%clk 0:02:53]}  Bg7 {[%clk 0:02:45]} 5. d4 {[%clk 0:02:46]}  exd4 {[%clk 0:02:44]} 6. Nd5 {[%clk 0:02:46]}  h6 {[%clk 0:02:42]} 7. Bf4 {[%clk 0:02:31]}  d6 {[%clk 0:02:34]} 8. Nxd4 {[%clk 0:02:30]}  Bd7 {[%clk 0:02:33]} 9. c3 {[%clk 0:02:18]}  Nge7 {[%clk 0:02:21]} 10. O-O {[%clk 0:02:12]}  O-O {[%clk 0:02:20]} 11. Bxc6 {[%clk 0:01:42]}  bxc6 {[%clk 0:01:58]} 12. Nxe7+ {[%clk 0:01:41]}  Qxe7 {[%clk 0:01:55]} 13. Qd2 {[%clk 0:01:42]}  Kh7 {[%clk 0:01:53]} 14. Rae1 {[%clk 0:01:40]}  c5 {[%clk 0:01:51]} 15. Nc2 {[%clk 0:01:26]}  Bb5 {[%clk 0:01:50]} 16. Ne3 {[%clk 0:01:19]}  Bxf1 {[%clk 0:01:49]} 17. Nd5 {[%clk 0:01:19]}  Qd8 {[%clk 0:01:48]} 18. Kxf1 {[%clk 0:01:18]}  Re8 {[%clk 0:01:47]} 19. Re3 {[%clk 0:01:11]}  g5 {[%clk 0:01:44]} 20. Rh3 {[%clk 0:01:00]}  gxf4 {[%clk 0:01:42]} 21. Qxf4 {[%clk 0:00:59]}  Re6 {[%clk 0:01:41]} 22. Qxf7 {[%clk 0:00:55]}  Rg6 {[%clk 0:01:37]} 23. Ne7 {[%clk 0:00:43]}  Rf6 {[%clk 0:01:34]} 24. Rxh6+ {[%clk 0:00:28]}  Rxh6 {[%clk 0:01:33]} 25. Qf5+ {[%clk 0:00:25]}  Kh8 {[%clk 0:01:31]} 26. Ng6+ {[%clk 0:00:25]}  Rxg6 {[%clk 0:01:31]} 27. Qxg6 {[%clk 0:00:22]}  Qf6 {[%clk 0:01:31]} 0-1


[Site "https://www.chess.com"]

[Event "Titled Tuesday Blitz May 24 Early 2022"]
[White "Csonka, Balazs"]
[Black "Zia, Tahsin Tajwar"]
[WhiteFideId "742910"]
[BlackFideId "10211888"]
[WhiteElo "2404"]
[BlackElo "1800"]
[Result "1-0"]
[Round "02"]
[TimeControl "180+1"]
[Date "2022.05.25"]
[WhiteClock "0:00:21"]
[BlackClock "0:00:04"]

1. d4 {[%clk 0:03:00]}  d5 {[%clk 0:02:59]} 2. Nf3 {[%clk 0:02:59]}  Nf6 {[%clk 0:02:59]} 3. Bf4 {[%clk 0:03:00]}  c5 {[%clk 0:02:58]} 4. e3 {[%clk 0:03:00]}  Nc6 {[%clk 0:02:59]} 5. Nbd2 {[%clk 0:03:00]}  cxd4 {[%clk 0:02:48]} 6. exd4 {[%clk 0:03:01]}  Bg4 {[%clk 0:02:47]} 7. c3 {[%clk 0:03:01]}  e6 {[%clk 0:02:40]} 8. Qa4 {[%clk 0:02:57]}  Bd6 {[%clk 0:02:28]} 9. Ba6 {[%clk 0:02:56]}  Bxf4 {[%clk 0:02:22]} 10. Bxb7 {[%clk 0:02:56]}  O-O {[%clk 0:02:15]} 11. Bxc6 {[%clk 0:02:49]}  Rb8 {[%clk 0:02:08]} 12. b4 {[%clk 0:02:49]}  Qc7 {[%clk 0:01:56]} 13. g3 {[%clk 0:02:10]}  Bxd2+ {[%clk 0:01:32]} 14. Nxd2 {[%clk 0:02:11]}  e5 {[%clk 0:01:33]} 15. O-O {[%clk 0:01:58]}  e4 {[%clk 0:01:20]} 16. b5 {[%clk 0:01:48]}  Qc8 {[%clk 0:01:04]} 17. Rfe1 {[%clk 0:01:33]}  Qf5 {[%clk 0:00:55]} 18. Qc2 {[%clk 0:01:26]}  h5 {[%clk 0:00:43]} 19. c4 {[%clk 0:01:13]}  dxc4 {[%clk 0:00:09]} 20. Nxe4 {[%clk 0:01:02]}  Nxe4 {[%clk 0:00:09]} 21. Qxe4 {[%clk 0:01:01]}  Qf6 {[%clk 0:00:06]} 22. Rac1 {[%clk 0:00:58]}  Be6 {[%clk 0:00:05]} 23. d5 {[%clk 0:00:56]}  Bf5 {[%clk 0:00:04]} 24. Qxc4 {[%clk 0:00:56]}  Qd6 {[%clk 0:00:05]} 25. a4 {[%clk 0:00:49]}  g6 {[%clk 0:00:04]} 26. Qc5 {[%clk 0:00:47]}  Qf6 {[%clk 0:00:03]} 27. d6 {[%clk 0:00:47]}  Rbd8 {[%clk 0:00:01]} 28. Rcd1 {[%clk 0:00:46]}  Bg4 {[%clk 0:00:02]} 29. Qd4 {[%clk 0:00:43]}  Qf5 {[%clk 0:00:02]} 30. Rd2 {[%clk 0:00:41]}  h4 {[%clk 0:00:02]} 31. Qf4 {[%clk 0:00:28]}  Qh5 {[%clk 0:00:02]} 32. Re5 {[%clk 0:00:28]}  Qh7 {[%clk 0:00:01]} 33. Qxg4 {[%clk 0:00:27]}  f6 {[%clk 0:00:02]} 34. Re7 {[%clk 0:00:26]}  Qh8 {[%clk 0:00:03]} 35. Bd5+ {[%clk 0:00:24]}  Rf7 {[%clk 0:00:03]} 36. Kh1 {[%clk 0:00:23]}  Kf8 {[%clk 0:00:04]} 37. Rxf7+ {[%clk 0:00:23]}  Ke8 {[%clk 0:00:04]} 38. gxh4 {[%clk 0:00:21]} 1-0


[Site "https://www.chess.com"]

[Event "Titled Tuesday Blitz May 24 Early 2022"]
[White "Darini, Pouria"]
[Black "Chernomordik, Pavel"]
[WhiteFideId "12502200"]
[BlackFideId "2804530"]
[WhiteElo "2483"]
[BlackElo "2220"]
[Result "1-0"]
[Round "02"]
[TimeControl "180+1"]
[Date "2022.05.25"]
[WhiteClock "0:00:55"]
[BlackClock "0:00:24"]

1. d4 {[%clk 0:03:00]}  g6 {[%clk 0:02:59]} 2. e4 {[%clk 0:03:00]}  Bg7 {[%clk 0:02:59]} 3. Nc3 {[%clk 0:03:00]}  d6 {[%clk 0:02:59]} 4. Be3 {[%clk 0:03:00]}  a6 {[%clk 0:02:59]} 5. h4 {[%clk 0:02:58]}  h6 {[%clk 0:02:58]} 6. Qd2 {[%clk 0:02:52]}  b5 {[%clk 0:02:56]} 7. f3 {[%clk 0:02:53]}  Bb7 {[%clk 0:02:54]} 8. O-O-O {[%clk 0:02:49]}  Nd7 {[%clk 0:02:54]} 9. Kb1 {[%clk 0:02:49]}  Nb6 {[%clk 0:02:47]} 10. Bd3 {[%clk 0:02:18]}  Qd7 {[%clk 0:02:39]} 11. Nh3 {[%clk 0:02:09]}  e6 {[%clk 0:02:34]} 12. g4 {[%clk 0:01:53]}  Ne7 {[%clk 0:02:33]} 13. Rhe1 {[%clk 0:01:39]}  O-O-O {[%clk 0:02:27]} 14. Ne2 {[%clk 0:01:28]}  Kb8 {[%clk 0:02:25]} 15. Qc1 {[%clk 0:01:24]}  Nc6 {[%clk 0:02:10]} 16. c3 {[%clk 0:01:21]}  Na5 {[%clk 0:02:02]} 17. b3 {[%clk 0:01:13]}  Rc8 {[%clk 0:01:57]} 18. Nf2 {[%clk 0:01:13]}  Qe7 {[%clk 0:01:50]} 19. h5 {[%clk 0:01:13]}  c5 {[%clk 0:01:45]} 20. Qb2 {[%clk 0:01:10]}  g5 {[%clk 0:01:39]} 21. f4 {[%clk 0:01:03]}  gxf4 {[%clk 0:01:28]} 22. Bxf4 {[%clk 0:01:02]}  e5 {[%clk 0:01:14]} 23. Be3 {[%clk 0:01:02]}  exd4 {[%clk 0:00:59]} 24. cxd4 {[%clk 0:01:03]}  c4 {[%clk 0:00:59]} 25. Bc2 {[%clk 0:01:01]}  b4 {[%clk 0:00:56]} 26. Ng3 {[%clk 0:00:59]}  c3 {[%clk 0:00:50]} 27. Qc1 {[%clk 0:00:59]}  Qh4 {[%clk 0:00:50]} 28. Nf5 {[%clk 0:00:59]}  Qf6 {[%clk 0:00:46]} 29. e5 {[%clk 0:00:55]}  dxe5 {[%clk 0:00:43]} 30. dxe5 {[%clk 0:00:56]}  Qc6 {[%clk 0:00:29]} 31. Rd6 {[%clk 0:00:56]}  Bxe5 {[%clk 0:00:24]} 32. Rxc6 {[%clk 0:00:55]}  Rxc6 {[%clk 0:00:24]} 33. Bxb6 {[%clk 0:00:55]} 1-0


[Site "https://www.chess.com"]

[Event "Titled Tuesday Blitz May 24 Early 2022"]
[White "De Arruda, Leandro Formes"]
[Black "Bintang, Rasyid A. Hidayat"]
[WhiteFideId "22722009"]
[BlackFideId "7105355"]
[WhiteElo "1852"]
[BlackElo "2456"]
[Result "1-0"]
[Round "02"]
[TimeControl "180+1"]
[Date "2022.05.25"]
[WhiteClock "0:00:58"]
[BlackClock "0:01:24"]

1. d4 {[%clk 0:03:00]}  d5 {[%clk 0:02:59]} 2. e3 {[%clk 0:03:00]}  Nf6 {[%clk 0:02:58]} 3. Nf3 {[%clk 0:03:00]}  g6 {[%clk 0:02:57]} 4. Be2 {[%clk 0:03:00]}  Bg7 {[%clk 0:02:56]} 5. O-O {[%clk 0:03:01]}  O-O {[%clk 0:02:56]} 6. c4 {[%clk 0:02:57]}  c6 {[%clk 0:02:56]} 7. Nc3 {[%clk 0:02:58]}  Re8 {[%clk 0:02:55]} 8. Ne5 {[%clk 0:02:59]}  Nbd7 {[%clk 0:02:54]} 9. f4 {[%clk 0:02:59]}  e6 {[%clk 0:02:53]} 10. b3 {[%clk 0:02:58]}  a6 {[%clk 0:02:53]} 11. Bb2 {[%clk 0:02:58]}  Nxe5 {[%clk 0:02:47]} 12. fxe5 {[%clk 0:02:55]}  Nd7 {[%clk 0:02:48]} 13. Bd3 {[%clk 0:02:54]}  Qg5 {[%clk 0:02:47]} 14. Qf3 {[%clk 0:02:53]}  Rf8 {[%clk 0:02:45]} 15. Ba3 {[%clk 0:02:50]}  Bh6 {[%clk 0:02:42]} 16. Rae1 {[%clk 0:02:40]}  f5 {[%clk 0:02:41]} 17. Bxf8 {[%clk 0:02:38]}  Nxf8 {[%clk 0:02:41]} 18. Na4 {[%clk 0:02:29]}  b5 {[%clk 0:02:35]} 19. Nb6 {[%clk 0:02:28]}  Rb8 {[%clk 0:02:35]} 20. Nxc8 {[%clk 0:02:28]}  Rxc8 {[%clk 0:02:36]} 21. Rf2 {[%clk 0:02:13]}  Rb8 {[%clk 0:02:35]} 22. Rc2 {[%clk 0:02:11]}  bxc4 {[%clk 0:02:33]} 23. bxc4 {[%clk 0:02:12]}  Qe7 {[%clk 0:02:22]} 24. cxd5 {[%clk 0:02:04]}  Qa3 {[%clk 0:02:20]} 25. Qe2 {[%clk 0:01:49]}  cxd5 {[%clk 0:02:18]} 26. Bxa6 {[%clk 0:01:47]}  Qa4 {[%clk 0:02:02]} 27. Bd3 {[%clk 0:01:43]}  Nd7 {[%clk 0:02:00]} 28. Rec1 {[%clk 0:01:38]}  f4 {[%clk 0:01:58]} 29. Rc8+ {[%clk 0:01:37]}  Rxc8 {[%clk 0:01:58]} 30. Rxc8+ {[%clk 0:01:37]}  Kf7 {[%clk 0:01:56]} 31. Qc2 {[%clk 0:01:31]}  Qa5 {[%clk 0:01:53]} 32. Qf2 {[%clk 0:01:12]}  Qa3 {[%clk 0:01:46]} 33. Rc7 {[%clk 0:01:03]}  Ke7 {[%clk 0:01:38]} 34. Bb5 {[%clk 0:01:00]}  Kd8 {[%clk 0:01:23]} 35. Rxd7+ {[%clk 0:00:59]}  Kc8 {[%clk 0:01:24]} 36. Qc2+ {[%clk 0:00:58]} 1-0


[Site "https://www.chess.com"]

[Event "Titled Tuesday Blitz May 24 Early 2022"]
[White "Decuigniere, Tom"]
[Black "Onslow, Alfie"]
[WhiteFideId "26093820"]
[BlackFideId "436976"]
[WhiteElo "1997"]
[BlackElo "1885"]
[Result "0-1"]
[Round "02"]
[TimeControl "180+1"]
[Date "2022.05.25"]
[WhiteClock "0:00:01"]
[BlackClock "0:01:15"]

1. e4 {[%clk 0:03:00]}  g6 {[%clk 0:02:54]} 2. d4 {[%clk 0:02:59]}  Bg7 {[%clk 0:02:54]} 3. Be3 {[%clk 0:02:56]}  c6 {[%clk 0:02:54]} 4. c4 {[%clk 0:02:51]}  d5 {[%clk 0:02:54]} 5. cxd5 {[%clk 0:02:52]}  cxd5 {[%clk 0:02:54]} 6. e5 {[%clk 0:02:53]}  Nc6 {[%clk 0:02:54]} 7. Nc3 {[%clk 0:02:53]}  h5 {[%clk 0:02:54]} 8. Nf3 {[%clk 0:02:49]}  Bg4 {[%clk 0:02:49]} 9. h3 {[%clk 0:02:46]}  Bxf3 {[%clk 0:02:49]} 10. Qxf3 {[%clk 0:02:47]}  e6 {[%clk 0:02:50]} 11. a3 {[%clk 0:02:41]}  Nh6 {[%clk 0:02:47]} 12. Bd3 {[%clk 0:02:39]}  a6 {[%clk 0:02:44]} 13. O-O {[%clk 0:02:33]}  h4 {[%clk 0:02:41]} 14. b4 {[%clk 0:02:10]}  b5 {[%clk 0:02:28]} 15. Rac1 {[%clk 0:02:06]}  Qb6 {[%clk 0:02:23]} 16. Nxd5 {[%clk 0:01:17]}  exd5 {[%clk 0:02:13]} 17. Qxd5 {[%clk 0:01:18]}  Rc8 {[%clk 0:02:10]} 18. Be4 {[%clk 0:00:49]}  Ne7 {[%clk 0:01:43]} 19. Rxc8+ {[%clk 0:00:48]}  Nxc8 {[%clk 0:01:44]} 20. Rc1 {[%clk 0:00:37]}  O-O {[%clk 0:01:42]} 21. Qd7 {[%clk 0:00:23]}  Qe6 {[%clk 0:01:29]} 22. Qxe6 {[%clk 0:00:18]}  fxe6 {[%clk 0:01:29]} 23. Bxg6 {[%clk 0:00:17]}  Ne7 {[%clk 0:01:26]} 24. Be4 {[%clk 0:00:15]}  Nhf5 {[%clk 0:01:25]} 25. Rc7 {[%clk 0:00:13]}  Nd5 {[%clk 0:01:17]} 26. Bxd5 {[%clk 0:00:10]}  exd5 {[%clk 0:01:18]} 27. Rc5 {[%clk 0:00:03]}  Nxe3 {[%clk 0:01:14]} 28. fxe3 {[%clk 0:00:03]}  Bh6 {[%clk 0:01:15]} 29. Rxd5 {[%clk 0:00:01]}  Bxe3+ {[%clk 0:01:15]} 0-1


[Site "https://www.chess.com"]

[Event "Titled Tuesday Blitz May 24 Early 2022"]
[White "Demchenko, Anton"]
[Black "Avinash, Ramesh"]
[WhiteFideId "4160258"]
[BlackFideId "45018340"]
[WhiteElo "2539"]
[BlackElo "1875"]
[Result "1-0"]
[Round "02"]
[TimeControl "180+1"]
[Date "2022.05.24"]
[WhiteClock "0:00:08"]
[BlackClock "0:00:04"]

1. e4 {[%clk 0:03:00]}  e6 {[%clk 0:02:59]} 2. d4 {[%clk 0:03:00]}  d5 {[%clk 0:02:58]} 3. Nd2 {[%clk 0:03:01]}  Nf6 {[%clk 0:02:58]} 4. e5 {[%clk 0:03:01]}  Nfd7 {[%clk 0:02:59]} 5. c3 {[%clk 0:03:02]}  c5 {[%clk 0:02:57]} 6. f4 {[%clk 0:03:03]}  Nc6 {[%clk 0:02:53]} 7. Ndf3 {[%clk 0:03:03]}  Be7 {[%clk 0:02:40]} 8. Bd3 {[%clk 0:03:02]}  O-O {[%clk 0:02:19]} 9. Ne2 {[%clk 0:02:54]}  f6 {[%clk 0:02:07]} 10. O-O {[%clk 0:02:52]}  cxd4 {[%clk 0:02:05]} 11. cxd4 {[%clk 0:02:51]}  fxe5 {[%clk 0:02:05]} 12. fxe5 {[%clk 0:02:50]}  Nb6 {[%clk 0:01:50]} 13. a3 {[%clk 0:02:45]}  Bd7 {[%clk 0:01:49]} 14. Qc2 {[%clk 0:02:42]}  h6 {[%clk 0:01:46]} 15. b3 {[%clk 0:02:24]}  Rc8 {[%clk 0:01:45]} 16. Qd1 {[%clk 0:02:23]}  Be8 {[%clk 0:01:40]} 17. Nf4 {[%clk 0:02:20]}  Qd7 {[%clk 0:01:39]} 18. Bb1 {[%clk 0:02:12]}  g5 {[%clk 0:01:17]} 19. Qd3 {[%clk 0:02:10]}  Rf5 {[%clk 0:01:15]} 20. Nxe6 {[%clk 0:02:09]}  Bg6 {[%clk 0:00:56]} 21. Nc5 {[%clk 0:01:40]}  Bxc5 {[%clk 0:00:48]} 22. dxc5 {[%clk 0:01:41]}  Na8 {[%clk 0:00:47]} 23. Qd1 {[%clk 0:01:26]}  Rcf8 {[%clk 0:00:35]} 24. Bxf5 {[%clk 0:01:23]}  Bxf5 {[%clk 0:00:35]} 25. Bb2 {[%clk 0:01:11]}  Nc7 {[%clk 0:00:35]} 26. Nd4 {[%clk 0:01:10]}  Nxd4 {[%clk 0:00:34]} 27. Qxd4 {[%clk 0:01:07]}  Ne6 {[%clk 0:00:34]} 28. Qd2 {[%clk 0:01:04]}  Qc6 {[%clk 0:00:24]} 29. b4 {[%clk 0:01:00]}  Be4 {[%clk 0:00:17]} 30. Rxf8+ {[%clk 0:00:59]}  Nxf8 {[%clk 0:00:17]} 31. e6 {[%clk 0:00:55]}  Nxe6 {[%clk 0:00:15]} 32. Rf1 {[%clk 0:00:47]}  Nf4 {[%clk 0:00:14]} 33. Rf2 {[%clk 0:00:31]}  Qg6 {[%clk 0:00:06]} 34. Qc3 {[%clk 0:00:10]}  Qh7 {[%clk 0:00:05]} 35. Qf6 {[%clk 0:00:09]}  Bg6 {[%clk 0:00:02]} 36. Qd8+ {[%clk 0:00:09]}  Kf7 {[%clk 0:00:03]} 37. Qd7+ {[%clk 0:00:09]}  Kg8 {[%clk 0:00:03]} 38. Qxh7+ {[%clk 0:00:09]}  Kxh7 {[%clk 0:00:04]} 39. Rd2 {[%clk 0:00:08]}  Nd3 {[%clk 0:00:05]} 40. Bd4 {[%clk 0:00:07]}  Be4 {[%clk 0:00:06]} 41. g3 {[%clk 0:00:07]}  Kg6 {[%clk 0:00:06]} 42. Kf1 {[%clk 0:00:06]}  Nc1 {[%clk 0:00:06]} 43. Rd1 {[%clk 0:00:06]}  Nb3 {[%clk 0:00:07]} 44. Ke2 {[%clk 0:00:05]}  Nxd4+ {[%clk 0:00:07]} 45. Rxd4 {[%clk 0:00:05]}  Kf5 {[%clk 0:00:08]} 46. Ke3 {[%clk 0:00:06]}  Ke5 {[%clk 0:00:09]} 47. Rd2 {[%clk 0:00:06]}  a6 {[%clk 0:00:09]} 48. Rd4 {[%clk 0:00:06]}  Bf5 {[%clk 0:00:10]} 49. h4 {[%clk 0:00:06]}  Be6 {[%clk 0:00:10]} 50. hxg5 {[%clk 0:00:06]}  hxg5 {[%clk 0:00:11]} 51. Rd1 {[%clk 0:00:07]}  Bf5 {[%clk 0:00:11]} 52. Rd2 {[%clk 0:00:07]}  Be4 {[%clk 0:00:11]} 53. Rh2 {[%clk 0:00:07]}  d4+ {[%clk 0:00:11]} 54. Kd2 {[%clk 0:00:08]}  Kf5 {[%clk 0:00:09]} 55. Rh7 {[%clk 0:00:08]}  Kg4 {[%clk 0:00:09]} 56. Rg7 {[%clk 0:00:08]}  Kf5 {[%clk 0:00:05]} 57. Re7 {[%clk 0:00:07]}  Bc6 {[%clk 0:00:05]} 58. Rg7 {[%clk 0:00:07]}  Kg4 {[%clk 0:00:05]} 59. Kd3 {[%clk 0:00:07]}  Kxg3 {[%clk 0:00:04]} 60. Rxg5+ {[%clk 0:00:07]}  Kf4 {[%clk 0:00:05]} 61. Rg7 {[%clk 0:00:07]}  Ke5 {[%clk 0:00:05]} 62. Re7+ {[%clk 0:00:06]}  Kd5 {[%clk 0:00:04]} 63. Rg7 {[%clk 0:00:06]}  Bb5+ {[%clk 0:00:04]} 64. Kd2 {[%clk 0:00:07]}  Bc6 {[%clk 0:00:03]} 65. Rg4 {[%clk 0:00:03]}  Kc4 {[%clk 0:00:03]} 66. Kc2 {[%clk 0:00:04]}  Ba4+ {[%clk 0:00:03]} 67. Kd2 {[%clk 0:00:03]}  Bc6 {[%clk 0:00:02]} 68. Rf4 {[%clk 0:00:03]}  Ba4 {[%clk 0:00:03]} 69. Rf6 {[%clk 0:00:03]}  Bc6 {[%clk 0:00:03]} 70. Rd6 {[%clk 0:00:03]}  Kb3 {[%clk 0:00:04]} 71. Rxd4 {[%clk 0:00:03]}  Kxa3 {[%clk 0:00:04]} 72. Kc3 {[%clk 0:00:04]}  Ka4 {[%clk 0:00:05]} 73. Rf4 {[%clk 0:00:03]}  Kb5 {[%clk 0:00:05]} 74. Rf6 {[%clk 0:00:03]}  a5 {[%clk 0:00:05]} 75. bxa5 {[%clk 0:00:03]}  Kxc5 {[%clk 0:00:06]} 76. Rf5+ {[%clk 0:00:04]}  Kd6 {[%clk 0:00:06]} 77. Kb4 {[%clk 0:00:04]}  Kc7 {[%clk 0:00:07]} 78. Rf6 {[%clk 0:00:04]}  Kb8 {[%clk 0:00:07]} 79. Kc5 {[%clk 0:00:05]}  Ka7 {[%clk 0:00:07]} 80. Rf8 {[%clk 0:00:05]}  Bh1 {[%clk 0:00:08]} 81. Rg8 {[%clk 0:00:04]}  Bc6 {[%clk 0:00:08]} 82. Rg6 {[%clk 0:00:04]}  Bh1 {[%clk 0:00:09]} 83. Rb6 {[%clk 0:00:05]}  Bc6 {[%clk 0:00:09]} 84. a6 {[%clk 0:00:05]}  Bh1 {[%clk 0:00:08]} 85. Kb5 {[%clk 0:00:05]}  Bf3 {[%clk 0:00:06]} 86. Ka5 {[%clk 0:00:05]}  Bg2 {[%clk 0:00:06]} 87. Rg6 {[%clk 0:00:05]}  Bd5 {[%clk 0:00:05]} 88. Rg7 {[%clk 0:00:05]}  Bg2 {[%clk 0:00:05]} 89. Re7 {[%clk 0:00:06]}  Bd5 {[%clk 0:00:05]} 90. Rc7 {[%clk 0:00:05]}  Bh1 {[%clk 0:00:05]} 91. Rd7 {[%clk 0:00:06]}  Bg2 {[%clk 0:00:05]} 92. Re7 {[%clk 0:00:06]}  Bh1 {[%clk 0:00:06]} 93. Kb5 {[%clk 0:00:06]}  Bc6+ {[%clk 0:00:06]} 94. Ka5 {[%clk 0:00:06]}  Bg2 {[%clk 0:00:07]} 95. axb7 {[%clk 0:00:07]}  Bxb7 {[%clk 0:00:06]} 96. Kb5 {[%clk 0:00:07]}  Kb8 {[%clk 0:00:06]} 97. Kb6 {[%clk 0:00:08]}  Bc8 {[%clk 0:00:04]} 98. Re8 {[%clk 0:00:08]} 1-0


[Site "https://www.chess.com"]